fUSD/lending_fUSD_20250620
["ID","MTS","AMOUNT","RATE_DAILY","PERIOD"]
[366659156,1750389043034,-168.0,0.00025614,2]
[366659158,1750389043044,-259.84,0.00025649,2]
[366659160,1750389043054,-2742.31,0.00025717,2]
[366659162,1750389043065,-151.0,0.00025753,2]
[366659164,1750389043075,-151.0,0.00025753,2]
[366659166,1750389043084,-217.77064111,0.00025753,2]
[366659168,1750389043094,-7551.88,0.00025768,2]
[366659170,1750389043104,-15037.74,0.00025768,2]
[366659173,1750389043120,-2094.90011706,0.00025831,13]
[366659175,1750389043130,-246.1759361,0.00025899,2]
[366659177,1750389043140,-2019.9,0.00025932,2]
[366659178,1750389043151,-666.0,0.00025945,2]
[366659179,1750389043161,-250.0,0.00025966,2]
[366659180,1750389043171,-6666.0,0.00025999,3]
[366659181,1750389043182,-6666.0,0.00025999,2]
[366659182,1750389043192,-9999.0,0.00025999,2]
[366659183,1750389043202,-9999.0,0.00025999,3]
[366659184,1750389043212,-8404.18738785,0.00025999,8]
[366659185,1750389043222,-9999.0,0.00025999,5]
[366659186,1750389043232,-5636.0,0.00025999,18]
[366659187,1750389043243,-3333.0,0.00025999,12]
[366659188,1750389043253,-9999.0,0.00025999,2]
[366659189,1750389043263,-9999.0,0.00025999,3]
[366659190,1750389043274,-834.11677829,0.00025999,3]
[366659191,1750389043284,-666.0,0.00026,2]
[366659192,1750389043295,-2101.97,0.00026,4]
[366659193,1750389043306,-420.0,0.00026026,2]
[366659194,1750389043316,-151.0,0.00026066,2]
[366659195,1750389043326,-207.4,0.00026066,2]
[366659196,1750389043337,-189.0,0.00026093,7]
[366659197,1750389043348,-2094.90011706,0.00026141,14]
[366659198,1750389043359,-159.99,0.00026254,2]
[366659199,1750389043369,-189.0,0.00026299,2]
[366659200,1750389043379,-167.36,0.00026385,2]
[366659201,1750389043390,-446.85,0.000264,120]
[366659202,1750389043400,-250.0,0.00026404,2]
[366659203,1750389043410,-2094.90011706,0.00026452,15]
[366659204,1750389043421,-2061.33,0.000265,7]
[366659205,1750389043432,-201.0,0.00026544,3]
[366659206,1750389043443,-250.0,0.00026675,2]
[366659207,1750389043454,-643.0,0.00026702,7]
[366659208,1750389043464,-643.0,0.00026715,2]
[366659209,1750389043475,-150.0,0.00026722,2]
[366659210,1750389043485,-2094.90011706,0.00026762,15]
[366659211,1750389043495,-211.6260319,0.00026821,2]
[366659212,1750389043506,-643.0,0.00026876,2]
[366659213,1750389043518,-211.62603189,0.00026879,2]
[366659214,1750389043528,-228.00745,0.000269,8]
[366659215,1750389043540,-1000.0,0.000269,2]
[366659216,1750389043551,-2500.0,0.000269,2]
[366659217,1750389043568,-211.62603189,0.00026936,2]
[366659218,1750389043578,-643.0,0.00026977,2]
[366659219,1750389043588,-643.0,0.00026988,2]
[366659220,1750389043599,-211.62603189,0.00026994,2]
[366659221,1750389043609,-3333.0,0.00027,9]
[366659222,1750389043619,-6666.0,0.00027,8]
[366659223,1750389043630,-6888.0,0.00027,6]
[366659224,1750389043641,-999.0,0.00027,4]
[366659225,1750389043651,-5869.0,0.00027,19]
[366659226,1750389043662,-6666.0,0.00027,8]
[366659227,1750389043672,-9999.0,0.00027,5]
[366659228,1750389043683,-8888.0,0.00027,13]
[366659229,1750389043694,-9999.0,0.00027,6]
[366659230,1750389043704,-9999.0,0.00027,11]
[366659231,1750389043715,-9999.0,0.00027,2]
[366659232,1750389043726,-9999.0,0.00027,3]
[366659233,1750389043736,-643.0,0.00027049,2]
[366659234,1750389043747,-211.62603189,0.00027051,2]
[366659235,1750389043761,-2094.90011706,0.00027072,16]
[366659236,1750389043772,-1000.0,0.000271,2]
[366659237,1750389043782,-211.62603189,0.00027109,2]
[366659238,1750389043793,-3083.81270295,0.00027156,5]
[366659239,1750389043803,-167.1960607,0.00027158,2]
[366659240,1750389043814,-310.22,0.0002716,2]
[366659241,1750389043825,-20905.4062,0.00027165,2]
[366659242,1750389043836,-305.26054524,0.00027165,2]
[366659243,1750389043846,-154.27234288,0.00027166,2]
[366659244,1750389043856,-211.62603189,0.00027166,2]
[366659245,1750389043867,-505.0,0.00027178,2]
[366659246,1750389043878,-154.27234283,0.00027197,2]
[366659247,1750389043892,-189.0,0.00027197,2]
[366659248,1750389043903,-1734.0,0.000272,2]
[366659249,1750389043913,-500.0,0.000272,2]
[366659250,1750389043923,-1000.0,0.000272,2]
[366659251,1750389043934,-1000.0,0.000272,2]
[366659252,1750389044272,-1417.799,0.00027206,15]
[366659253,1750389044288,-712.0,0.00027206,2]
[366659254,1750389044298,-300.0,0.00027208,2]
[366659255,1750389044308,-173.133,0.00027214,15]
[366659256,1750389044318,-200.0,0.00027219,2]
[366659257,1750389044328,-211.62603189,0.00027224,2]
[366659258,1750389044338,-154.27234283,0.00027227,2]
[366659259,1750389044347,-166.66371602,0.0002724,2]
[366659260,1750389044357,-150.0,0.00027242,2]
[366659261,1750389044367,-150.0,0.00027247,2]
[366659262,1750389044377,-32968.61374967,0.00027255,4]
[366659263,1750389044386,-217467.20384028,0.00027255,4]
[366659264,1750389045509,-1273.0,0.00027255,4]
[366659265,1750389045610,-1129.13249258,0.00027255,4]
[366659266,1750389045664,-705.32530926,0.00027255,4]
[366659267,1750389045676,-700.8615959,0.00027255,4]
[366659268,1750389045774,-26475.2316267,0.00027255,4]
[366659269,1750389045829,-588.748,0.00027255,4]
[366659279,1750389185070,4070.40844986,0.0002,2]
[366659280,1750389413217,3197.6079052,0.00025,120]
[366659281,1750389721676,679.2,0.00025,120]
[366659283,1750389932450,163.53,0.00013699,2]
[366659285,1750390059360,1152.46160429,0.00025,120]
[366659287,1750390117311,40782.37463716,0.000151,2]
[366659290,1750390199952,200.0,0.00025,120]
[366659292,1750390231605,-202.0,0.0002366,2]
[366659293,1750390231616,-150.0,0.00024633,4]
[366659294,1750390231625,-150.0,0.00024633,4]
[366659295,1750390231634,-150.0,0.00024633,4]
[366659296,1750390231644,-150.00000001,0.00024633,4]
[366659297,1750390231653,-150.0,0.00024633,4]
[366659298,1750390231662,-150.0,0.00024633,4]
[366659299,1750390231672,-1200.0,0.00024899,2]
[366659300,1750390231681,-1539.24270888,0.000249,12]
[366659301,1750390231691,-202.0,0.00024913,4]
[366659302,1750390231700,-1539.24270874,0.0002521,12]
[366659303,1750390231709,-300.0,0.0002552,2]
[366659304,1750390231719,-1539.24270874,0.00025521,13]
[366659305,1750390231729,-1000.0,0.0002577,2]
[366659306,1750390231738,-12902.99,0.00025779,2]
[366659307,1750390231747,-194.0,0.000258,120]
[366659308,1750390231757,-250.0,0.00025825,2]
[366659309,1750390231767,-159.99,0.00025828,2]
[366659310,1750390231777,-1539.24270874,0.00025831,13]
[366659311,1750390231787,-200.0,0.00026018,7]
[366659312,1750390231796,-261.35,0.00026055,2]
[366659313,1750390231806,-662.95,0.00026111,2]
[366659314,1750390231815,-1539.24270874,0.00026141,14]
[366659315,1750390231825,-202.0,0.00026166,6]
[366659316,1750390231834,-250.0,0.00026169,2]
[366659317,1750390231844,-338.28,0.00026228,120]
[366659318,1750390231854,-151.0,0.00026228,2]
[366659319,1750390231863,-1957.856,0.00026228,2]
[366659320,1750390231873,-207.4,0.00026228,2]
[366659321,1750390231883,-2030.296672,0.00026283,2]
[366659322,1750390231893,-1154.92484467,0.00026338,2]
[366659323,1750390231903,-1539.24270874,0.00026452,15]
[366659324,1750390231912,-402.98,0.000265,7]
[366659325,1750390231923,-500.0,0.000265,7]
[366659326,1750390231933,-514.04,0.000265,7]
[366659327,1750390231943,-500.0,0.000265,7]
[366659328,1750390231952,-500.0,0.000265,7]
[366659329,1750390231962,-500.0,0.000265,7]
[366659330,1750390231975,-500.0,0.000265,7]
[366659331,1750390231985,-500.0,0.000265,7]
[366659332,1750390231995,-500.0,0.000265,7]
[366659333,1750390232004,-500.0,0.000265,7]
[366659334,1750390232014,-500.0,0.000265,7]
[366659335,1750390232024,-500.0,0.000265,7]
[366659336,1750390232034,-500.0,0.000265,7]
[366659337,1750390232044,-625.09,0.000265,7]
[366659338,1750390232054,-500.0,0.000265,7]
[366659339,1750390232064,-507.65841443,0.00026602,2]
[366659340,1750390232073,-1539.24270874,0.00026762,15]
[366659341,1750390232083,-199.506519,0.00026879,8]
[366659342,1750390232093,-300.0,0.000269,2]
[366659344,1750390232102,-1001.0,0.00026938,30]
[366659348,1750390232112,-789.94664,0.0002697,2]
[366659351,1750390232122,-200.0,0.00027,120]
[366659354,1750390232131,-2008.72240857,0.0002702,2]
[366659357,1750390232141,-2008.72240838,0.00027027,2]
[366659359,1750390232150,-2008.72240838,0.00027033,2]
[366659362,1750390232160,-2008.72240838,0.0002704,2]
[366659363,1750390232169,-2008.72240838,0.00027047,2]
[366659365,1750390232179,-265.92,0.0002705,2]
[366659367,1750390232188,-2008.72240838,0.00027053,2]
[366659369,1750390232198,-524.594,0.0002706,2]
[366659371,1750390232207,-1500.0,0.0002706,2]
[366659373,1750390232217,-1000.0,0.0002706,2]
[366659375,1750390232226,-4545.4507,0.0002706,2]
[366659377,1750390232235,-3963.6813,0.0002706,2]
[366659379,1750390232245,-2086.2194,0.0002706,2]
[366659381,1750390232254,-1516.327,0.0002706,2]
[366659383,1750390232263,-2008.72240838,0.0002706,2]
[366659385,1750390232273,-2008.72240838,0.00027067,2]
[366659388,1750390232282,-167.19606068,0.00027069,2]
[366659390,1750390232292,-5000.0,0.0002707,2]
[366659392,1750390232302,-1918.341,0.0002707,3]
[366659394,1750390232311,-1539.24270874,0.00027072,16]
[366659396,1750390232320,-2008.72240838,0.00027073,2]
[366659398,1750390232330,-166.66371602,0.0002708,2]
[366659400,1750390232339,-2008.72240838,0.0002708,2]
[366659402,1750390232348,-2008.72240838,0.00027087,2]
[366659404,1750390232358,-2227.29865656,0.00027088,2]
[366659406,1750390232367,-500.0,0.0002709,2]
[366659408,1750390232377,-500.0,0.0002709,2]
[366659410,1750390232386,-500.0,0.0002709,2]
[366659412,1750390232396,-500.0,0.0002709,2]
[366659414,1750390232406,-500.0,0.0002709,2]
[366659416,1750390232416,-500.0,0.0002709,2]
[366659418,1750390232430,-500.0,0.0002709,2]
[366659420,1750390232444,-500.0,0.0002709,2]
[366659422,1750390232453,-150.0,0.0002709,2]
[366659424,1750390232463,-250.51911822,0.0002709,2]
[366659426,1750390232472,-500.0,0.0002709,2]
[366659428,1750390232482,-500.0,0.0002709,2]
[366659430,1750390232491,-167.49340246,0.0002709,2]
[366659432,1750390232501,-150.0,0.0002709,2]
[366659434,1750390232510,-150.0,0.0002709,2]
[366659436,1750390232519,-3008.0,0.0002709,2]
[366659437,1750390232529,-186.06049532,0.0002709,2]
[366659440,1750390232539,-201.6574953,0.0002709,2]
[366659441,1750390232548,-150.0,0.0002709,2]
[366659443,1750390232557,-150.0,0.0002709,2]
[366659445,1750390232566,-500.0,0.0002709,2]
[366659447,1750390232576,-180.38,0.0002709,2]
[366659450,1750390232585,-800.81302485,0.00027092,2]
[366659452,1750390232595,-2008.72240838,0.00027094,2]
[366659453,1750390232604,-1000.0,0.000271,2]
[366659455,1750390232613,-20074.92714742,0.000271,5]
[366659458,1750390232627,-2108.53454211,0.000271,5]
[366659463,1750390232664,-8744.15092581,0.000271,5]
[366659466,1750390232683,-9975.48442469,0.000271,5]
[366659468,1750390232694,-574.42573208,0.000271,5]
[366659478,1750390232804,-2911.73821749,0.000271,5]
[366659481,1750390232816,-567.02785561,0.000271,5]
[366659483,1750390232827,-673.93286093,0.000271,5]
[366659492,1750390232908,-6586.45664442,0.000271,5]
[366659509,1750390238262,-978.14528967,0.000271,5]
[366659510,1750390238728,-375.11531255,0.000271,5]
[366659513,1750390239804,-983.54,0.000271,5]
[366659514,1750390239913,-75446.52104629,0.000271,5]
[366659515,1750390239923,-265.86,0.000271,2]
[366659516,1750390239934,-2008.72240838,0.000271,2]
[366659517,1750390239944,-2008.72240838,0.00027107,2]
[366659518,1750390239954,-180.38,0.00027108,2]
[366659519,1750390239965,-2008.72240838,0.00027114,2]
[366659520,1750390239977,-500.0,0.00027117,2]
[366659521,1750390239986,-500.0,0.00027117,2]
[366659522,1750390239996,-500.0,0.00027117,2]
[366659523,1750390240006,-500.0,0.00027117,2]
[366659524,1750390240017,-500.0,0.00027117,2]
[366659525,1750390240028,-500.0,0.00027117,2]
[366659526,1750390240040,-500.0,0.00027117,2]
[366659527,1750390240051,-500.0,0.00027117,2]
[366659528,1750390240062,-151.72035687,0.00027117,2]
[366659529,1750390240072,-500.0,0.00027117,2]
[366659530,1750390240082,-502.27591577,0.00027117,2]
[366659531,1750390240092,-286.26770993,0.00027117,2]
[366659532,1750390240103,-150.0,0.00027117,2]
[366659533,1750390240114,-3008.0,0.00027117,2]
[366659534,1750390240125,-189.76245218,0.00027117,2]
[366659535,1750390240135,-500.0,0.00027117,2]
[366659536,1750390240146,-2008.72240838,0.0002712,2]
[366659537,1750390240157,-2008.72240838,0.00027127,2]
[366659538,1750390240167,-2008.72240838,0.00027134,2]
[366659539,1750390240177,-2008.72240838,0.0002714,2]
[366659540,1750390240187,-500.0,0.00027145,2]
[366659541,1750390240197,-500.0,0.00027145,2]
[366659542,1750390240213,-500.0,0.00027145,2]
[366659543,1750390240225,-500.0,0.00027145,2]
[366659544,1750390240236,-328.00730202,0.00027145,2]
[366659545,1750390240248,-500.0,0.00027145,2]
[366659546,1750390240259,-500.0,0.00027145,2]
[366659547,1750390240269,-500.0,0.00027145,2]
[366659548,1750390240280,-500.0,0.00027145,2]
[366659549,1750390240290,-150.0,0.00027145,2]
[366659550,1750390240301,-3008.0,0.00027145,2]
[366659551,1750390240311,-500.0,0.00027145,2]
[366659552,1750390240322,-2008.72240838,0.00027147,2]
[366659553,1750390240333,-180.38,0.00027149,2]
[366659554,1750390240343,-180.38,0.00027149,2]
[366659555,1750390240353,-180.38,0.00027149,2]
[366659556,1750390240364,-480.67093417,0.00027158,2]
[366659557,1750390240374,-500.0,0.00027158,2]
[366659558,1750390240385,-500.0,0.00027158,2]
[366659559,1750390240395,-500.0,0.00027158,2]
[366659560,1750390240406,-198.1227921,0.00027158,2]
[366659561,1750390240416,-500.0,0.00027158,2]
[366659562,1750390240426,-500.0,0.00027158,2]
[366659563,1750390240436,-500.0,0.00027158,2]
[366659564,1750390240446,-500.0,0.00027158,2]
[366659565,1750390240457,-500.0,0.00027158,2]
[366659566,1750390240467,-298.80692705,0.00027158,2]
[366659567,1750390240477,-500.0,0.00027158,2]
[366659568,1750390240487,-500.0,0.00027158,2]
[366659569,1750390240498,-500.0,0.00027158,2]
[366659570,1750390240509,-500.0,0.00027158,2]
[366659571,1750390240520,-500.0,0.00027158,2]
[366659572,1750390240530,-205.0237871,0.00027158,2]
[366659573,1750390240540,-431.51924781,0.00027158,2]
[366659574,1750390240550,-500.0,0.00027158,2]
[366659575,1750390240560,-254.26261757,0.00027158,2]
[366659576,1750390240571,-500.0,0.00027158,2]
[366659577,1750390240581,-500.0,0.00027158,2]
[366659578,1750390240592,-500.0,0.00027158,2]
[366659579,1750390240602,-500.0,0.00027158,2]
[366659580,1750390240613,-500.0,0.00027158,2]
[366659581,1750390240624,-193.64497234,0.00027158,2]
[366659582,1750390240634,-150.0,0.00027159,2]
[366659583,1750390240649,-150.0,0.00027159,2]
[366659584,1750390240660,-500.0,0.00027159,2]
[366659585,1750390240671,-218.23619018,0.00027159,2]
[366659586,1750390240682,-500.0,0.00027159,2]
[366659587,1750390240692,-150.35273726,0.00027159,2]
[366659588,1750390240703,-500.0,0.00027159,2]
[366659589,1750390240714,-201.33314554,0.00027159,2]
[366659590,1750390240724,-201.22768234,0.00027159,2]
[366659591,1750390240735,-150.0,0.00027159,2]
[366659592,1750390240746,-150.0,0.00027159,2]
[366659593,1750390240756,-127422.713117,0.00027159,2]
[366659594,1750390240768,-300.0,0.00027169,10]
[366659595,1750390240778,-666.0,0.00027169,2]
[366659596,1750390240789,-672.91796395,0.00027169,2]
[366659597,1750390240800,-11583.8830107,0.00027169,2]
[366659598,1750390240811,-1000.0,0.00027169,2]
[366659599,1750390240822,-196.77299689,0.00027169,2]
[366659600,1750390240833,-166.32,0.00027169,2]
[366659601,1750390240844,-150590.479139,0.0002717,2]
[366659602,1750390240855,-500.0,0.00027172,2]
[366659603,1750390240865,-500.0,0.00027172,2]
[366659604,1750390240876,-500.0,0.00027172,2]
[366659605,1750390240887,-500.0,0.00027172,2]
[366659606,1750390240897,-500.0,0.00027172,2]
[366659607,1750390240908,-500.0,0.00027172,2]
[366659608,1750390240918,-500.0,0.00027172,2]
[366659609,1750390240929,-150.0,0.00027172,2]
[366659610,1750390240939,-3008.0,0.00027172,2]
[366659611,1750390240949,-500.0,0.00027172,2]
[366659612,1750390240960,-227.92,0.00027177,2]
[366659613,1750390240971,-163.37,0.00027177,2]
[366659614,1750390240981,-300.0,0.00027178,10]
[366659615,1750390240992,-227.99730631,0.00027178,2]
[366659616,1750390241002,-252.96751221,0.00027178,2]
[366659617,1750390241013,-500.0,0.00027178,2]
[366659618,1750390241023,-500.0,0.00027178,2]
[366659619,1750390241033,-500.0,0.00027178,2]
[366659620,1750390241043,-500.0,0.00027178,2]
[366659621,1750390241054,-301.04573983,0.00027178,2]
[366659622,1750390241064,-520.53541337,0.00027178,2]
[366659623,1750390241079,-500.0,0.00027178,2]
[366659624,1750390241090,-500.0,0.00027178,2]
[366659625,1750390241100,-500.0,0.00027178,2]
[366659626,1750390241111,-500.0,0.00027178,2]
[366659627,1750390241121,-500.0,0.00027178,2]
[366659628,1750390241131,-300.0,0.00027179,10]
[366659629,1750390241143,-300.0,0.00027179,10]
[366659630,1750390241153,-300.0,0.00027179,10]
[366659631,1750390241163,-666.0,0.00027179,2]
[366659632,1750390241174,-300.0,0.00027179,10]
[366659633,1750390241184,-150.0,0.00027179,2]
[366659634,1750390241194,-16484.30687484,0.00027179,4]
[366659635,1750390241204,-930502.26293386,0.00027179,4]
[366659651,1750390245699,-1152.97210044,0.00027179,4]
[366659652,1750390245711,-1160.00477796,0.00027179,4]
[366659666,1750390572482,202.0,0.0002266,2]
[366659667,1750390932187,202.0,0.00023043,2]
[366659668,1750390961850,203.0,0.00023043,2]
[366659671,1750391042112,152.89,0.00013699,2]
[366659722,1750391423540,318.0,0.00023464,120]
[366659727,1750391431856,-202.0,0.00023464,2]
[366659728,1750391431868,-215.73502143,0.00024608,4]
[366659729,1750391431878,-274.58568136,0.00024608,4]
[366659730,1750391431888,-202.0,0.00024926,4]
[366659731,1750391431898,-152.89,0.00026027,2]
[366659732,1750391431908,-200.0,0.00026067,7]
[366659733,1750391431919,-261.35,0.00026116,2]
[366659734,1750391431931,-357.48,0.00026157,120]
[366659735,1750391431941,-202.0,0.00026387,6]
[366659736,1750391431952,-174.568204,0.00026848,8]
[366659737,1750391431962,-189.9,0.0002688,2]
[366659738,1750391431972,-300.64,0.000269,2]
[366659739,1750391431982,-173.35075365,0.000269,16]
[366659740,1750391432002,-955.42723303,0.000269,16]
[366659741,1750391432012,-47.22441681,0.00026969,2]
[366659742,1750391432024,-1215.36585993,0.00026969,2]
[366659743,1750391432036,-432.38019586,0.00026969,2]
[366659744,1750391432068,-3337.40151439,0.00026969,2]
[366659745,1750391432093,-6780.30871506,0.00026969,2]
[366659746,1750391432112,-739.489561,0.00026969,2]
[366659747,1750391432144,-314.74769893,0.00026969,2]
[366659748,1750391432155,-506.59935775,0.00026969,2]
[366659749,1750391432170,-493.39064225,0.00026969,2]
[366659750,1750391432180,-3132.5466222,0.00026969,2]
[366659769,1750391437755,-1000.0,0.00026035,2]
[366659770,1750391437765,-988.33983246,0.00026969,2]
[366659771,1750391437777,-837.57679442,0.00026969,2]
[366659772,1750391437807,-1000.0029746,0.00026969,2]
[366659773,1750391438740,-4041.52377632,0.00026969,2]
[366659774,1750391438751,-150.99,0.00026969,2]
[366659775,1750391438760,-7548.57,0.00027,10]
[366659776,1750391438770,-865.999,0.00027,3]
[366659777,1750391438779,-155.183,0.00027,2]
[366659778,1750391438789,-834.11677829,0.00027,3]
[366659779,1750391438798,-834.11677829,0.00027,3]
[366659780,1750391438807,-1483.24547493,0.00027,2]
[366659781,1750391438818,-1156.69,0.00027005,2]
[366659782,1750391438827,-8098.86,0.00027005,2]
[366659783,1750391438836,-7097.47,0.00027005,20]
[366659784,1750391438846,-1483.24547485,0.00027028,2]
[366659785,1750391438856,-189.9,0.0002705,2]
[366659786,1750391438866,-207.4,0.00027053,2]
[366659787,1750391438875,-1483.24547485,0.00027056,2]
[366659788,1750391438887,-1000.0,0.0002706,2]
[366659789,1750391438898,-2500.0,0.0002706,2]
[366659790,1750391438908,-154.27234283,0.00027068,2]
[366659791,1750391438919,-274.73449068,0.00027068,2]
[366659792,1750391438931,-1000.0,0.00027069,2]
[366659793,1750391438940,-35808.38546387,0.00027069,2]
[366659794,1750391438954,-331.93673613,0.00027069,2]
[366659795,1750391438964,-166.66371602,0.0002707,2]
[366659796,1750391438973,-55.72268053,0.00027079,2]
[366659797,1750391439069,-326.30205797,0.00027079,2]
[366659798,1750391439111,-809.3909615,0.00027079,2]
[366659799,1750391439121,-686.4111642,0.0002708,2]
[366659800,1750391439130,-887.69787427,0.0002708,2]
[366659801,1750391439142,-447.91524965,0.0002708,2]
[366659802,1750391439151,-162.75854776,0.0002708,2]
[366659803,1750391439161,-460.22247414,0.0002708,2]
[366659804,1750391439171,-1483.24547485,0.00027083,2]
[366659805,1750391439180,-490.0,0.000271,4]
[366659806,1750391439190,-490.0,0.000271,4]
[366659807,1750391439199,-262.5174585,0.000271,4]
[366659808,1750391439211,-1034.4225415,0.000271,4]
[366659809,1750391439221,-490.0,0.000271,4]
[366659810,1750391439231,-559.73,0.000271,4]
[366659811,1750391439240,-611.94,0.000271,4]
[366659812,1750391439250,-490.0,0.000271,4]
[366659813,1750391439259,-536.86,0.000271,4]
[366659814,1750391439269,-543.32,0.000271,4]
[366659815,1750391439278,-927.6,0.000271,4]
[366659816,1750391439288,-490.0,0.000271,4]
[366659817,1750391439298,-574.57630094,0.000271,4]
[366659849,1750391440535,-635.20369906,0.000271,4]
[366659850,1750391440551,-500.76197625,0.000271,4]
[366659851,1750391440564,-112.98802375,0.000271,4]
[366659852,1750391440574,-488.8027112,0.000271,4]
[366659855,1750391440705,-1.1972888,0.000271,4]
[366659856,1750391440715,-500.0,0.000271,4]
[366659857,1750391440725,-490.0,0.000271,4]
[366659858,1750391440735,-490.0,0.000271,4]
[366659859,1750391440745,-617.72,0.000271,4]
[366659860,1750391440759,-490.0,0.000271,4]
[366659861,1750391440769,-600.89,0.000271,4]
[366659862,1750391440778,-490.0,0.000271,4]
[366659863,1750391440788,-490.0,0.000271,4]
[366659864,1750391440798,-1037.23,0.000271,4]
[366659865,1750391440808,-490.0,0.000271,4]
[366659866,1750391440818,-490.0,0.000271,4]
[366659867,1750391440828,-490.0,0.000271,4]
[366659868,1750391440839,-490.0,0.000271,4]
[366659869,1750391440848,-1004.88,0.000271,4]
[366659870,1750391440858,-490.0,0.000271,4]
[366659871,1750391440868,-490.0,0.000271,4]
[366659872,1750391440878,-490.0,0.000271,4]
[366659873,1750391440887,-491.04552303,0.000271,2]
[366659874,1750391440897,-733.2,0.000271,4]
[366659875,1750391440907,-490.0,0.000271,4]
[366659876,1750391440916,-875.87,0.000271,4]
[366659877,1750391440926,-490.0,0.000271,4]
[366659878,1750391440936,-723.56,0.000271,4]
[366659879,1750391440945,-490.0,0.000271,4]
[366659880,1750391440955,-490.0,0.000271,4]
[366659881,1750391440966,-490.0,0.000271,4]
[366659882,1750391440976,-1094.34,0.000271,4]
[366659883,1750391440985,-490.0,0.000271,4]
[366659884,1750391440996,-490.0,0.000271,4]
[366659885,1750391441006,-490.0,0.000271,4]
[366659886,1750391441016,-490.0,0.000271,4]
[366659887,1750391441026,-490.0,0.000271,4]
[366659888,1750391441037,-490.0,0.000271,4]
[366659889,1750391441047,-490.0,0.000271,4]
[366659890,1750391441057,-490.0,0.000271,4]
[366659891,1750391441067,-585.51,0.000271,4]
[366659892,1750391441078,-490.0,0.000271,4]
[366659893,1750391441088,-588.0,0.000271,4]
[366659894,1750391441099,-490.0,0.000271,4]
[366659895,1750391441110,-881.59,0.000271,4]
[366659896,1750391441120,-490.0,0.000271,4]
[366659897,1750391441131,-490.0,0.000271,4]
[366659898,1750391441143,-1830.07,0.000271,4]
[366659899,1750391441153,-490.0,0.000271,4]
[366659900,1750391441164,-490.0,0.000271,4]
[366659901,1750391441174,-781.4,0.000271,4]
[366659902,1750391441186,-490.0,0.000271,4]
[366659903,1750391441195,-490.0,0.000271,4]
[366659904,1750391441207,-490.0,0.000271,4]
[366659905,1750391441217,-611.8,0.000271,4]
[366659906,1750391441226,-490.0,0.000271,4]
[366659907,1750391441236,-490.0,0.000271,4]
[366659908,1750391441247,-509.82926388,0.000271,4]
[366659909,1750391441256,-490.0,0.000271,4]
[366659911,1750391441266,-490.0,0.000271,4]
[366659912,1750391441276,-979.69,0.000271,4]
[366659914,1750391441286,-490.0,0.000271,4]
[366659915,1750391441296,-490.0,0.000271,4]
[366659916,1750391441306,-490.0,0.000271,4]
[366659917,1750391441316,-524.54,0.000271,4]
[366659918,1750391441326,-490.0,0.000271,4]
[366659919,1750391441336,-490.0,0.000271,4]
[366659920,1750391441346,-490.0,0.000271,4]
[366659921,1750391441356,-490.0,0.000271,4]
[366659922,1750391441366,-509.0,0.000271,30]
[366659923,1750391441376,-490.0,0.000271,4]
[366659924,1750391441385,-490.0,0.000271,4]